fUST/lending_fUST_20240516
["ID","MTS","AMOUNT","RATE_DAILY","PERIOD"]
[327168888,1715871991208,194.39143777,9.999e-05,2]
[327168889,1715871993124,359.0,0.00010959,2]
[327168890,1715871996674,311.2286764,0.00014073,2]
[327168891,1715871996700,563.7796406,0.00014073,2]
[327168892,1715871996761,384.28467909,9.999e-05,2]
[327168893,1715872001467,719.75352328,9.999e-05,2]
[327168894,1715872003766,299.17,0.00010959,2]
[327168895,1715872005657,154.79876161,9.999e-05,2]
[327168896,1715872005860,1580.95146224,9.999e-05,2]
[327168897,1715872006296,11454.53017781,9.999e-05,2]
[327168898,1715872012615,513.28860101,9.999e-05,2]
[327168899,1715872014234,154.79876161,9.999e-05,2]
[327168900,1715872014323,249.31,0.00010959,2]
[327168901,1715872018058,261.02399172,9.999e-05,2]
[327168902,1715872024597,154.79876161,9.999e-05,2]
[327168903,1715872024843,207.75,0.00010959,2]
[327168904,1715872025980,154.79876161,9.999e-05,2]
[327168905,1715872029125,-328.22139918,0.00015055,2]
[327168906,1715872029145,-528.82337842,0.00015056,2]
[327168907,1715872029166,-155.62963402,0.00015056,2]
[327168908,1715872029187,-7891.96743066,0.00015056,2]
[327168909,1715872029207,-157.36443019,0.00015056,2]
[327168910,1715872029231,-333.40190303,0.00015056,2]
[327168911,1715872029254,-2677.97514069,0.00015056,2]
[327168912,1715872029274,-193.56822187,0.00015056,2]
[327168913,1715872029300,-384.09800794,0.00015056,2]
[327168914,1715872029322,-626.52450899,0.00015056,2]
[327168915,1715872029343,-1593.66828313,0.00015056,2]
[327168916,1715872029363,-358.2329213,0.00015056,2]
[327168917,1715872029384,-492.31289669,0.00015056,2]
[327168918,1715872029404,-154.79876161,0.00015056,2]
[327168919,1715872029425,-653.08641699,0.00015056,2]
[327168920,1715872029446,-1896.9888826,0.00015057,2]
[327168921,1715872029466,-1884.87016128,0.00015057,2]
[327168922,1715872029486,-59383.50211818,0.00015058,2]
[327168923,1715872029508,-1014.49840447,0.0001506,2]
[327168924,1715872029528,-590.3458183,0.00015116,2]
[327168925,1715872029548,-3000.0,0.00015117,2]
[327168926,1715872029570,-783.7,0.00015146,2]
[327168927,1715872029592,-783.7,0.00015338,2]
[327168928,1715872029614,-783.7,0.0001553,2]
[327168929,1715872029636,-530.0359968,0.00015614,2]
[327168930,1715872029659,-783.7,0.00015723,2]
[327168931,1715872029680,-783.7,0.00015915,2]
[327168932,1715872029701,-153.0,0.00015978,2]
[327168933,1715872029722,-153.0,0.00016,2]
[327168934,1715872029918,-153.0,0.00016078,2]
[327168935,1715872029941,-93.40243488,0.00016078,2]
[327168936,1715872035370,173.13,0.00010959,2]
[327168937,1715872042613,154.79876161,9.999e-05,2]
[327168938,1715872044182,-256.43640329,0.00015056,2]
[327168939,1715872044206,-8229.25897755,0.00015056,2]
[327168940,1715872044227,-153.0,0.00015978,2]
[327168941,1715872044479,-395.5956337,0.00016077,2]
[327168942,1715872044500,-297.5922547,0.00016077,2]
[327168943,1715872044521,-59.59756512,0.00016078,2]
[327168944,1715872044543,-153.0,0.00016078,2]
[327168945,1715872044564,-783.7,0.00016107,2]
[327168946,1715872044587,-150.0,0.00016161,2]
[327168947,1715872044607,-416.66666666,0.00016165,2]
[327168948,1715872044628,-153.0,0.00016178,2]
[327168949,1715872044650,-39.8869337,0.00016208,2]
[327168950,1715872045903,865.67,0.00010959,2]
[327168982,1715872233900,-409.14856978,0.00016068,2]
[327168989,1715872239741,-328.22139918,0.00016067,2]
[327168991,1715872239751,-512.53419069,0.00016068,2]
[327168993,1715872239761,-150.0,0.00016173,2]
[327168995,1715872239772,-189.52503468,0.00016238,2]
[327168997,1715872239782,-150.0,0.0001632,2]
[327168999,1715872239792,-1228.85300617,0.00016336,2]
[327169001,1715872239801,-1228.85300617,0.00016337,2]
[327169003,1715872239811,-1228.85300617,0.00016337,2]
[327169005,1715872239822,-947.16247481,0.00016338,2]
[327169007,1715872239834,-281.69053136,0.00016338,2]
[327169008,1715872239844,-1228.85300617,0.00016338,2]
[327169010,1715872239854,-471.81236247,0.00016338,2]
[327169039,1715872240143,-4733.62332087,0.00016338,2]
[327169041,1715872240154,-2000.0,0.00016338,2]
[327169043,1715872240164,-15179.28264641,0.0001637,2]
[327169045,1715872240173,-155.46726424,0.00016434,2]
[327169047,1715872240183,-975.54957356,0.00016434,2]
[327169049,1715872240193,-207.39451134,0.00016434,2]
[327169051,1715872240203,-475.66686918,0.00016434,2]
[327169054,1715872240213,-889.91106519,0.00016434,2]
[327169056,1715872240223,-514.99100215,0.00016434,2]
[327169058,1715872240233,-525.74242885,0.00016434,2]
[327169060,1715872240243,-488.63019549,0.00016434,2]
[327169062,1715872240253,-155.09758085,0.00016434,2]
[327169064,1715872240263,-154.85242977,0.00016434,2]
[327169066,1715872240272,-324.35192115,0.00016434,2]
[327169068,1715872240283,-157.34114478,0.00016434,2]
[327169070,1715872240295,-155.30777771,0.00016434,2]
[327169072,1715872240305,-155.18075614,0.00016435,2]
[327169074,1715872240314,-425.54339899,0.00016435,2]
[327169076,1715872240324,-833.00260517,0.00016435,2]
[327169078,1715872240334,-154.82515001,0.00016436,2]
[327169080,1715872240344,-260.64786681,0.00016436,2]
[327169082,1715872240353,-239.36510649,0.00016436,2]
[327169084,1715872240363,-585.03376366,0.00016436,2]
[327169086,1715872240373,-154.79876161,0.00016436,2]
[327169087,1715872240382,-181.58103721,0.00016436,2]
[327169088,1715872240392,-156.36643608,0.00016436,2]
[327169089,1715872240402,-684.29354561,0.00016436,2]
[327169090,1715872240411,-1117.80164826,0.00016436,2]
[327169091,1715872240421,-154.82968734,0.00016436,2]
[327169092,1715872240430,-3236.77449698,0.00016436,2]
[327169093,1715872240440,-3060.90965728,0.00016436,2]
[327169094,1715872240450,-154.82968734,0.00016436,2]
[327169095,1715872240461,-22735.59059449,0.00016436,2]
[327169096,1715872240471,-709.96728858,0.00016436,2]
[327169097,1715872240483,-154.81422293,0.00016436,2]
[327169098,1715872240493,-276.47064883,0.00016436,2]
[327169099,1715872240504,-154.81422293,0.00016436,2]
[327169100,1715872240514,-525.73573081,0.00016436,2]
[327169101,1715872240524,-234.81997423,0.00016436,2]
[327169102,1715872240534,-813.16890343,0.00016436,2]
[327169103,1715872240544,-181.45012104,0.00016436,2]
[327169104,1715872240554,-231.13430062,0.00016436,2]
[327169105,1715872240563,-437.00266911,0.00016436,2]
[327169106,1715872240573,-270.34744618,0.00016436,2]
[327169107,1715872240583,-1891.5588323,0.00016436,2]
[327169108,1715872240592,-376.27210539,0.00016436,2]
[327169110,1715872240602,-7943.70183129,0.00016436,2]
[327169111,1715872240612,-294.77473183,0.00016436,2]
[327169114,1715872240621,-394.35363322,0.00016437,2]
[327169117,1715872240631,-3764.01876893,0.00016437,2]
[327169120,1715872240641,-500.0,0.00016438,2]
[327169122,1715872240650,-500.0,0.00016438,2]
[327169124,1715872240660,-527.19,0.00016438,2]
[327169127,1715872240670,-500.0,0.00016438,2]
[327169128,1715872240679,-500.0,0.00016438,2]
[327169130,1715872240689,-500.0,0.00016438,2]
[327169132,1715872240699,-500.0,0.00016438,2]
[327169135,1715872240708,-500.0,0.00016438,2]
[327169136,1715872240718,-666.6,0.00016438,2]
[327169139,1715872240729,-500.0,0.00016438,2]
[327169141,1715872240739,-500.0,0.00016438,2]
[327169143,1715872240749,-500.0,0.00016438,2]
[327169145,1715872240758,-500.0,0.00016438,2]
[327169146,1715872240768,-518.33,0.00016438,2]
[327169148,1715872240778,-586.43584108,0.00016438,2]
[327169150,1715872240788,-500.0,0.00016438,2]
[327169152,1715872240798,-517.6,0.00016438,2]
[327169155,1715872240807,-500.0,0.00016438,2]
[327169156,1715872240816,-500.0,0.00016438,2]
[327169158,1715872240826,-500.0,0.00016438,2]
[327169160,1715872240836,-1288.28,0.00016438,2]
[327169163,1715872240846,-500.0,0.00016438,2]
[327169165,1715872240856,-557.54,0.00016438,2]
[327169167,1715872240867,-500.0,0.00016438,2]
[327169169,1715872240876,-500.0,0.00016438,2]
[327169170,1715872240885,-611.28564328,0.00016438,2]
[327169172,1715872240895,-500.0,0.00016438,2]
[327169174,1715872240904,-688.34,0.00016438,2]
[327169177,1715872240914,-500.0,0.00016438,2]
[327169178,1715872240923,-500.0,0.00016438,2]
[327169181,1715872240932,-500.0,0.00016438,2]
[327169183,1715872240942,-500.0,0.00016438,4]
[327169185,1715872240957,-500.0,0.00016438,2]
[327169187,1715872240966,-500.0,0.00016438,2]
[327169189,1715872240976,-500.0,0.00016438,2]
[327169191,1715872240986,-500.0,0.00016438,2]
[327169193,1715872240995,-500.0,0.00016438,2]
[327169195,1715872241005,-500.0,0.00016438,2]
[327169198,1715872241015,-500.0,0.00016438,2]
[327169201,1715872241025,-530.1,0.00016438,2]
[327169204,1715872241036,-500.0,0.00016438,2]
[327169207,1715872241046,-500.0,0.00016438,2]
[327169241,1715872241055,-500.0,0.00016438,2]
[327169244,1715872241288,-500.0,0.00016438,2]
[327169246,1715872241298,-500.0,0.00016438,2]
[327169247,1715872241307,-500.0,0.00016438,2]
[327169248,1715872241317,-500.0,0.00016438,2]
[327169249,1715872241327,-500.0,0.00016438,2]
[327169250,1715872241337,-500.0,0.00016438,2]
[327169251,1715872241347,-500.0,0.00016438,2]
[327169252,1715872241356,-500.0,0.00016438,2]
[327169253,1715872241365,-500.0,0.00016438,2]
[327169254,1715872241374,-500.0,0.00016438,2]
[327169255,1715872241384,-563.44,0.00016438,2]
[327169256,1715872241393,-500.0,0.00016438,2]
[327169257,1715872241402,-500.0,0.00016438,2]
[327169258,1715872241411,-717.98,0.00016438,2]
[327169259,1715872241420,-3028.19,0.00016438,2]
[327169260,1715872241431,-1447.74,0.00016438,2]
[327169261,1715872241440,-816.92,0.00016438,2]
[327169262,1715872241449,-589.36,0.00016438,2]
[327169263,1715872241458,-1033.12,0.00016438,2]
[327169264,1715872241467,-500.0,0.00016438,2]
[327169265,1715872241476,-500.0,0.00016438,2]
[327169266,1715872241487,-202.88098257,0.00016438,2]
[327169267,1715872241496,-500.0,0.00016438,2]
[327169268,1715872241505,-500.0,0.00016438,2]
[327169269,1715872241515,-500.0,0.00016438,2]
[327169270,1715872241524,-160.91882827,0.00016438,2]
[327169271,1715872241534,-501.02,0.00016438,2]
[327169272,1715872241543,-500.0,0.00016438,2]
[327169273,1715872241553,-500.0,0.00016438,2]
[327169274,1715872241563,-500.0,0.00016438,2]
[327169275,1715872241572,-500.0,0.00016438,2]
[327169276,1715872241581,-500.0,0.00016438,2]
[327169277,1715872241591,-1263.19,0.00016438,2]
[327169278,1715872241600,-151.0,0.00016438,2]
[327169279,1715872241610,-151.0,0.00016438,2]
[327169280,1715872241620,-151.0,0.00016438,2]
[327169281,1715872241630,-1496.4,0.00016438,2]
[327169282,1715872241640,-500.0,0.00016438,2]
[327169283,1715872241650,-827.93,0.00016438,2]
[327169284,1715872241659,-500.0,0.00016438,2]
[327169285,1715872241668,-500.0,0.00016438,2]
[327169286,1715872241678,-500.0,0.00016438,2]
[327169287,1715872241688,-500.0,0.00016438,2]
[327169288,1715872241697,-543.75,0.00016438,2]
[327169289,1715872241707,-500.0,0.00016438,2]
[327169290,1715872241717,-500.0,0.00016438,2]
[327169291,1715872241726,-500.0,0.00016438,2]
[327169292,1715872241736,-176.81577058,0.00016438,2]
[327169293,1715872241745,-500.0,0.00016438,2]
[327169294,1715872241754,-1223.42,0.00016438,2]
[327169295,1715872241763,-500.0,0.00016438,2]
[327169296,1715872241773,-500.0,0.00016438,2]
[327169297,1715872241782,-1265.32,0.00016438,2]
[327169298,1715872241791,-283.35,0.00016438,2]
[327169299,1715872241800,-538.36,0.00016438,2]
[327169300,1715872241810,-1121.25,0.00016438,2]
[327169301,1715872241820,-500.0,0.00016438,2]
[327169302,1715872241829,-528.37195546,0.00016438,2]
[327169303,1715872241839,-500.0,0.00016438,2]
[327169304,1715872241848,-500.0,0.00016438,2]
[327169305,1715872241857,-624.44,0.00016438,2]
[327169306,1715872241866,-802.47,0.00016438,2]
[327169307,1715872241875,-320.69376436,0.00016438,2]
[327169308,1715872241884,-500.0,0.00016438,2]
[327169309,1715872241894,-759.69,0.00016438,2]
[327169310,1715872241903,-436.55677437,0.00016438,2]
[327169311,1715872241912,-690.01,0.00016438,2]
[327169312,1715872241921,-500.0,0.00016438,2]
[327169313,1715872241931,-500.0,0.00016438,2]
[327169314,1715872241941,-607.26,0.00016438,2]
[327169315,1715872241954,-500.0,0.00016438,2]
[327169316,1715872241963,-500.0,0.00016438,2]
[327169317,1715872241973,-500.0,0.00016438,2]
[327169318,1715872241984,-151.0,0.00016438,2]
[327169319,1715872241996,-500.0,0.00016438,2]
[327169320,1715872242013,-500.0,0.00016438,2]
[327169321,1715872242024,-500.0,0.00016438,2]
[327169322,1715872242035,-1037.8,0.00016438,2]
[327169323,1715872242044,-500.0,0.00016438,2]
[327169324,1715872242054,-1001.19,0.00016438,2]
[327169325,1715872242063,-1158.68,0.00016438,2]
[327169326,1715872242073,-500.0,0.00016438,2]
[327169327,1715872242083,-500.0,0.00016438,2]
[327169328,1715872242092,-500.0,0.00016438,2]
[327169329,1715872242101,-500.0,0.00016438,2]
[327169330,1715872242110,-519.3,0.00016438,2]
[327169331,1715872242119,-500.0,0.00016438,2]
[327169332,1715872242128,-500.0,0.00016438,2]
[327169333,1715872242137,-669.88,0.00016438,2]
[327169334,1715872242146,-518.52660179,0.00016438,2]
[327169335,1715872242155,-500.0,0.00016438,2]
[327169336,1715872242165,-500.0,0.00016438,2]
[327169337,1715872242174,-500.0,0.00016438,2]
[327169338,1715872242184,-500.0,0.00016438,2]
[327169339,1715872242193,-500.0,0.00016438,2]
[327169340,1715872242202,-714.32,0.00016438,2]
[327169341,1715872242211,-500.0,0.00016438,2]
[327169342,1715872242220,-500.0,0.00016438,2]
[327169343,1715872242233,-1121.92,0.00016438,2]
[327169344,1715872242242,-946.76,0.00016438,2]
[327169345,1715872242250,-500.0,0.00016438,2]
[327169346,1715872242260,-500.0,0.00016438,2]
[327169347,1715872242270,-2040.45,0.00016438,2]
[327169348,1715872242280,-2085.2,0.00016438,2]
[327169349,1715872242289,-500.0,0.00016438,2]
[327169350,1715872242299,-500.0,0.00016438,2]
[327169351,1715872242308,-510.39868428,0.00016438,2]
[327169352,1715872242317,-1283.57,0.00016438,2]
[327169353,1715872242326,-500.0,0.00016438,2]
[327169354,1715872242335,-500.0,0.00016438,2]
[327169355,1715872242345,-500.0,0.00016438,2]
[327169356,1715872242354,-500.0,0.00016438,2]
[327169357,1715872242363,-630.38,0.00016438,2]
[327169358,1715872242372,-500.0,0.00016438,2]
[327169359,1715872242381,-500.0,0.00016438,2]
[327169360,1715872242393,-501.73717795,0.00016438,2]
[327169361,1715872242413,-416.34085341,0.00016438,2]
[327169362,1715872242433,-529.58,0.00016438,2]
[327169363,1715872242453,-500.97767403,0.00016438,2]
[327169364,1715872242475,-1000.0,0.00016438,2]
[327169365,1715872242501,-500.07,0.00016438,2]
[327169366,1715872242523,-500.0,0.00016438,2]
[327169367,1715872242544,-500.0,0.00016438,2]
[327169368,1715872242562,-3932.1,0.00016438,2]
[327169369,1715872242572,-1516.16,0.00016438,2]
[327169370,1715872242581,-590.83875186,0.00016438,2]
[327169371,1715872242591,-500.0,0.00016438,2]
[327169372,1715872242600,-500.0,0.00016438,2]
[327169373,1715872242609,-393.24845366,0.00016438,2]
[327169374,1715872242618,-424.98422626,0.00016438,2]
[327169375,1715872242627,-1338.06,0.00016438,2]
[327169376,1715872242637,-500.0,0.00016438,2]
[327169377,1715872242647,-500.0,0.00016438,2]
[327169378,1715872242656,-2424.93,0.00016438,2]
[327169379,1715872242666,-1000.0,0.00016438,2]
[327169380,1715872242676,-500.0,0.00016438,2]
[327169381,1715872242685,-500.01708378,0.00016438,2]
[327169382,1715872242694,-500.0,0.00016438,2]
[327169383,1715872242704,-530.42059546,0.00016438,2]
[327169384,1715872242715,-1067.71,0.00016438,2]
[327169385,1715872242724,-500.0,0.00016438,2]
[327169386,1715872242735,-500.0,0.00016438,2]
[327169387,1715872242744,-500.0,0.00016438,2]
[327169388,1715872242753,-1032.21,0.00016438,2]
[327169389,1715872242762,-500.0,0.00016438,2]
[327169390,1715872242771,-602.2888841,0.00016438,2]
[327169391,1715872242781,-585.77,0.00016438,2]
[327169392,1715872242790,-995.02,0.00016438,2]
[327169393,1715872242799,-500.0,0.00016438,2]
[327169394,1715872242808,-273.49694,0.00016438,2]
[327169395,1715872242817,-500.0,0.00016438,2]
[327169396,1715872242827,-500.0,0.00016438,2]
[327169397,1715872242836,-500.0,0.00016438,2]
[327169398,1715872242845,-500.0,0.00016438,2]
[327169399,1715872242856,-500.0,0.00016438,2]
[327169400,1715872242866,-772.64,0.00016438,2]
[327169401,1715872242875,-500.0,0.00016438,2]
[327169402,1715872242884,-3521.27,0.00016438,2]
[327169403,1715872242893,-500.0,0.00016438,2]
[327169404,1715872242902,-500.0,0.00016438,2]
[327169405,1715872242912,-620.15,0.00016438,2]
[327169406,1715872242922,-1068.36,0.00016438,2]
[327169407,1715872242932,-500.0,0.00016438,2]
[327169408,1715872242940,-500.0,0.00016438,2]
[327169409,1715872242955,-500.0,0.00016438,2]
[327169410,1715872242965,-500.0,0.00016438,2]
[327169411,1715872242974,-500.0,0.00016438,2]
[327169412,1715872242985,-500.0,0.00016438,2]
[327169413,1715872242997,-500.0,0.00016438,2]
[327169414,1715872243006,-500.0,0.00016438,2]
[327169415,1715872243016,-500.0,0.00016438,2]
[327169416,1715872243028,-500.0,0.00016438,2]
[327169417,1715872243037,-500.0,0.00016438,2]
[327169418,1715872243046,-151.0,0.00016438,2]
[327169419,1715872243055,-151.0,0.00016438,2]
[327169420,1715872243065,-500.0,0.00016438,2]
[327169421,1715872243074,-4066.3,0.00016438,2]
[327169422,1715872243084,-610.64,0.00016438,2]
[327169423,1715872243093,-556.11,0.00016438,2]
[327169424,1715872243103,-500.0,0.00016438,2]
[327169425,1715872243113,-500.0,0.00016438,2]
[327169426,1715872243123,-1687.07,0.00016438,2]
[327169427,1715872243132,-500.0,0.00016438,2]
[327169428,1715872243142,-500.0,0.00016438,2]
[327169429,1715872243152,-946.82,0.00016438,2]
[327169430,1715872243162,-544.46,0.00016438,2]
[327169431,1715872243171,-1605.98,0.00016438,2]
[327169432,1715872243181,-500.0,0.00016438,2]
[327169433,1715872243190,-500.0,0.00016438,2]
[327169434,1715872243199,-500.0,0.00016438,2]
[327169435,1715872243208,-508.93,0.00016438,2]
[327169436,1715872243218,-500.0,0.00016438,2]
[327169437,1715872243227,-500.0,0.00016438,2]
[327169438,1715872243238,-500.0,0.00016438,2]
[327169439,1715872243247,-500.0,0.00016438,2]
[327169440,1715872243256,-500.0,0.00016438,2]
[327169441,1715872243265,-897.6,0.00016438,2]
[327169442,1715872243275,-151.0,0.00016438,2]
[327169443,1715872243284,-151.0,0.00016438,2]
[327169444,1715872243294,-500.0,0.00016438,2]
[327169445,1715872243303,-500.0,0.00016438,2]
[327169446,1715872243313,-512.12,0.00016438,2]
[327169447,1715872243323,-575.53,0.00016438,2]
[327169448,1715872243332,-920.27,0.00016438,2]
[327169449,1715872243341,-500.0,0.00016438,2]
[327169450,1715872243350,-500.0,0.00016438,2]
[327169451,1715872243359,-2387.75,0.00016438,2]
[327169452,1715872243370,-500.0,0.00016438,2]
[327169453,1715872243379,-674.36,0.00016438,2]
[327169454,1715872243389,-2035.68,0.00016438,2]
[327169455,1715872243398,-500.0,0.00016438,2]
[327169456,1715872243407,-797.23,0.00016438,2]
[327169458,1715872243417,-500.0,0.00016438,2]
[327169459,1715872243426,-5268.11,0.00016438,2]
[327169460,1715872243436,-500.0,0.00016438,2]
[327169461,1715872243445,-500.0,0.00016438,2]
[327169462,1715872243455,-500.0,0.00016438,2]
[327169463,1715872243465,-500.0,0.00016438,2]
[327169464,1715872243474,-500.0,0.00016438,2]
[327169465,1715872243485,-500.0,0.00016438,2]
[327169466,1715872243494,-500.0,0.00016438,2]
[327169467,1715872243503,-500.0,0.00016438,2]
[327169468,1715872243511,-376.95872008,0.00016438,2]
[327169469,1715872243520,-183.38,0.00016438,2]
[327169470,1715872243529,-500.0,0.00016438,2]
[327169471,1715872243538,-2497.64,0.00016438,2]
[327169472,1715872243547,-1483.29,0.00016438,2]
[327169473,1715872243556,-4507.73,0.00016438,2]
[327169474,1715872243566,-500.0,0.00016438,2]
[327169475,1715872243575,-500.0,0.00016438,2]
[327169476,1715872243584,-500.0,0.00016438,2]
[327169477,1715872243594,-206.13833,0.00016438,2]
[327169478,1715872243604,-206.13833,0.00016438,2]
[327169479,1715872243614,-206.13833,0.00016438,2]
[327169480,1715872243623,-206.13833,0.00016438,2]
[327169481,1715872243633,-500.0,0.00016438,2]
[327169482,1715872243643,-206.13833,0.00016438,2]
[327169483,1715872243653,-206.13833,0.00016438,2]
[327169484,1715872243662,-500.0,0.00016438,2]
[327169485,1715872243671,-206.13833,0.00016438,2]
[327169486,1715872243681,-151.0,0.00016438,2]
[327169487,1715872243690,-500.0,0.00016438,2]
[327169488,1715872243700,-206.13833,0.00016438,2]
[327169489,1715872243709,-151.0,0.00016438,2]
[327169490,1715872243720,-151.0,0.00016438,2]
[327169491,1715872243732,-151.0,0.00016438,2]
[327169492,1715872243741,-500.0,0.00016438,2]
[327169493,1715872243751,-2877.84,0.00016438,2]
[327169494,1715872243760,-500.0,0.00016438,2]
[327169495,1715872243769,-500.0,0.00016438,2]
[327169496,1715872243779,-604.63,0.00016438,2]
[327169497,1715872243788,-822.07,0.00016438,2]
[327169498,1715872243798,-939.83,0.00016438,2]
[327169499,1715872243807,-500.0,0.00016438,2]
[327169500,1715872243816,-151.0,0.00016438,2]
[327169501,1715872243827,-151.0,0.00016438,2]
[327169502,1715872243837,-723.53,0.00016438,2]
[327169503,1715872243846,-151.0,0.00016438,2]
[327169507,1715872243855,-151.0,0.00016438,2]
[327169512,1715872243864,-2385.71,0.00016438,2]
[327169516,1715872243873,-500.0,0.00016438,2]
[327169519,1715872243882,-500.0,0.00016438,2]
[327169521,1715872243891,-500.0,0.00016438,2]
[327169524,1715872243901,-500.0,0.00016438,2]
[327169527,1715872243910,-724.1,0.00016438,2]
[327169529,1715872243919,-509.31501629,0.00016438,2]
[327169532,1715872243929,-975.72,0.00016438,2]
[327169534,1715872243938,-500.0,0.00016438,2]
[327169536,1715872243953,-199.336665,0.00016438,2]
[327169537,1715872243963,-199.336665,0.00016438,2]
[327169539,1715872243972,-199.336665,0.00016438,2]
[327169541,1715872243982,-199.336665,0.00016438,2]
[327169543,1715872243991,-500.0,0.00016438,2]
[327169545,1715872244001,-500.0,0.00016438,2]
[327169547,1715872244011,-199.336665,0.00016438,2]
[327169549,1715872244022,-199.336665,0.00016438,2]
[327169551,1715872244033,-199.336665,0.00016438,2]
[327169553,1715872244043,-199.336665,0.00016438,2]
[327169555,1715872244052,-151.0,0.00016438,2]
[327169557,1715872244062,-539.83,0.00016438,2]
[327169559,1715872244071,-269.331606,0.00016438,2]
[327169561,1715872244081,-500.0,0.00016438,2]
[327169563,1715872244091,-500.0,0.00016438,2]
[327169565,1715872244100,-1708.18,0.00016438,2]
[327169566,1715872244110,-500.0,0.00016438,2]
[327169568,1715872244119,-500.0,0.00016438,2]
[327169570,1715872244129,-151.0,0.00016438,2]
[327169572,1715872244138,-151.0,0.00016438,2]
[327169574,1715872244148,-151.0,0.00016438,2]
[327169576,1715872244158,-151.0,0.00016438,2]
[327169590,1715872244302,-504.6192332,0.00016438,2]
[327169592,1715872244312,-500.0,0.00016438,2]
[327169594,1715872244321,-822.9,0.00016438,2]
[327169597,1715872244331,-2449.71,0.00016438,2]
[327169600,1715872244340,-500.0,0.00016438,2]
[327169603,1715872244349,-2653.83,0.00016438,2]
[327169608,1715872244369,-500.0,0.00016438,2]
[327169611,1715872244381,-500.0,0.00016438,2]
[327169614,1715872244391,-151.0,0.00016438,2]
[327169617,1715872244401,-500.0,0.00016438,2]
[327169620,1715872244411,-500.0,0.00016438,2]
[327169623,1715872244422,-1058.32,0.00016438,2]
[327169626,1715872244432,-1024.37,0.00016438,2]
[327169629,1715872244442,-500.0,0.00016438,2]
[327169632,1715872244452,-151.0,0.00016438,2]
[327169634,1715872244463,-151.0,0.00016438,2]
[327169637,1715872244474,-2296.84999,0.00016438,2]
[327169639,1715872244485,-1020.7784536,0.00016438,2]
[327169674,1715872244792,-1276.0715364,0.00016438,2]
[327169676,1715872244801,-2296.84999,0.00016438,2]
[327169678,1715872244810,-500.0,0.00016438,2]
[327169680,1715872244820,-1324.34,0.00016438,2]
[327169682,1715872244829,-500.0,0.00016438,2]
[327169684,1715872244839,-2296.84999,0.00016438,2]
[327169686,1715872244848,-2296.84999,0.00016438,2]
[327169688,1715872244857,-2296.84999,0.00016438,2]
[327169690,1715872244867,-585.37531245,0.00016438,2]
[327169692,1715872244876,-4448.65,0.00016438,2]
[327169695,1715872244885,-500.0,0.00016438,2]
[327169698,1715872244895,-500.0,0.00016438,2]
[327169701,1715872244904,-500.0,0.00016438,2]
[327169705,1715872244913,-151.0,0.00016438,2]
[327169708,1715872244923,-536.86,0.00016438,2]
[327169712,1715872244932,-500.0,0.00016438,2]
[327169714,1715872244942,-500.0,0.00016438,2]
[327169717,1715872244954,-500.0,0.00016438,2]
[327169720,1715872244964,-222.81208215,0.00016438,2]
[327169722,1715872244974,-154.93768344,0.00016438,2]
[327169724,1715872244984,-1949.52,0.00016438,2]
[327169726,1715872244995,-63583.12,0.00016438,2]
[327169728,1715872245004,-579.15,0.00016438,2]